bitfinex-derivatives/quotes_SOLF0:USTF0_20250516
["timestamp","ask_amount","ask_price","bid_price","bid_amount"]
[1747377913166,58.32,172.64,172.63,5.7913]
[1747377915269,58.32,172.67,172.66,5.7902]
[1747377924076,58.34,172.69,172.68,5.7897]
[1747377924278,294.3603008,172.72,172.63,8.70349311]
[1747377924477,58.32,172.71,172.63,8.70349311]
[1747377924679,58.32,172.71,172.7,5.789]
[1747377925581,236.0403008,172.72,172.66,58.32]
[1747377925980,236.0403008,172.72,172.68,5.7895]
[1747377926173,5.7889,172.71,172.68,5.7895]
[1747377926374,236.0403008,172.72,172.66,58.32]
[1747377927380,236.0403008,172.72,172.7,5.7889]
[1747377927682,236.0403008,172.72,172.71,5.7887]
[1747377928383,236.0403008,172.72,172.7,5.7889]
[1747377930482,241.8286008,172.72,172.69,5.7892]
[1747377930681,236.0403008,172.72,172.66,58.32]
[1747377931080,236.0403008,172.72,172.69,5.789]
[1747377931280,236.0403008,172.72,172.66,58.32]
[1747377932983,236.0403008,172.72,172.69,5.789]
[1747377933286,236.0403008,172.72,172.66,58.32]
[1747377933980,241.8287008,172.72,172.66,58.32]
[1747377934276,236.0403008,172.72,172.66,58.32]
[1747377935588,236.0403008,172.72,172.7,5.7889]
[1747377938289,236.0403008,172.72,172.71,5.7887]
[1747377939084,58.3,172.73,172.72,5.7883]
[1747377939479,1.925,172.78,172.66,65.12859311]
[1747377939685,58.3,172.77,172.69,6.80859311]
[1747377939984,58.3,172.77,172.7,62.1763]
[1747377940288,58.3,172.77,172.75,5.7871]
[1747377940487,58.3,172.77,172.7,62.1763]
[1747377940679,58.3,172.77,172.7,60.2504]
[1747377940879,5.7873,172.75,172.72,5.7881]
[1747377941191,58.3,172.77,172.7,58.32]
[1747377941386,58.3,172.77,172.66,65.10859311]
[1747377941596,60.1097,172.77,172.66,65.10859311]
[1747377941986,60.1097,172.77,172.69,5.7892]
[1747377942293,62.0144,172.77,172.66,58.3]
[1747377942490,62.0144,172.77,172.68,5.7896]
[1747377942692,6.80859311,172.75,172.63,62.0445]
[1747377942887,6.80859311,172.72,172.59,58.3]
[1747377943195,5.7904,172.66,172.63,5.7911]
[1747377943395,58.28,172.66,172.63,5.7911]
[1747377944394,5.7908,172.65,172.63,5.7911]
[1747377944795,58.28,172.66,172.61,5.7919]
[1747377945185,58.28,172.66,172.57,127.02202328]
[1747377945386,5.791,172.64,172.57,127.02202328]
[1747377945590,58.28,172.66,172.57,127.02202328]
[1747377945991,5.791,172.65,172.57,127.02202328]
[1747377946296,58.28,172.66,172.57,133.83061639]
[1747377946502,58.28,172.66,172.65,5.7907]
[1747377946995,58.28,172.66,172.64,5.7909]
[1747377947196,58.28,172.66,172.6,58.32]
[1747377947597,64.0706,172.66,172.62,5.7915]
[1747377948300,64.0706,172.66,172.63,5.7913]
[1747377948896,64.0706,172.66,172.64,5.791]
[1747377949101,58.28,172.66,172.64,5.791]
[1747377949398,58.28,172.66,172.6,58.32]
[1747377949801,58.3,172.68,172.6,58.32]
[1747377949987,58.28,172.67,172.66,5.7903]
[1747377950188,58.28,172.71,172.63,6.80859311]
[1747377950500,58.28,172.71,172.7,5.789]
[1747377950697,58.28,172.71,172.64,61.9691]
[1747377951099,58.28,172.71,172.68,5.7896]
[1747377952201,58.28,172.71,172.67,5.7899]
[1747377952402,58.28,172.71,172.64,61.9691]
[1747377952699,5.7892,172.7,172.66,5.7901]
[1747377952898,5.7892,172.7,172.64,61.9691]
[1747377953403,64.0688,172.71,172.64,61.9691]
[1747377953700,58.28,172.71,172.64,61.9691]
[1747377953901,58.28,172.71,172.68,5.7894]
[1747377954202,58.28,172.71,172.64,61.9691]
[1747377954394,58.28,172.71,172.67,5.7898]
[1747377954395,64.0689,172.71,172.67,5.7898]
[1747377954902,64.0689,172.71,172.68,5.7896]
[1747377955099,58.28,172.71,172.64,61.9691]
[1747377955497,58.28,172.71,172.68,5.7894]
[1747377955803,58.28,172.71,172.64,61.9691]
[1747377955999,58.28,172.71,172.7,5.789]
[1747377956698,236.05493027,172.72,172.7,5.789]
[1747377957201,116.56,172.73,172.7,5.789]
[1747377957395,122.348,172.73,172.7,5.789]
[1747377957594,116.56,172.73,172.7,5.789]
[1747377958203,116.56,172.73,172.71,5.7886]
[1747377959105,116.56,172.73,172.72,5.7883]
[1747377959902,58.28,172.74,172.73,5.7879]
[1747377960297,58.28,172.75,172.73,5.7879]
[1747377960498,58.28,172.74,172.73,5.7879]
[1747377961201,58.28,172.79,172.69,6.80859311]
[1747377961702,116.54,172.79,172.69,6.80859311]
[1747377962308,116.54,172.79,172.77,5.7863]
[1747377962905,116.54,172.79,172.78,5.7863]
[1747377963107,58.26,172.8,172.78,5.7863]
[1747377963314,58.26,172.8,172.73,3.8213]
[1747377963607,58.26,172.8,172.77,5.7863]
[1747377963908,1.9674,172.86,172.73,62.0813]
[1747377964110,116.54,172.85,172.75,6.80859311]
[1747377964305,116.54,172.85,172.76,58.28]
[1747377964697,116.54,172.85,172.81,5.785]
[1747377964899,116.54,172.85,172.76,58.28]
[1747377965710,58.26,172.85,172.77,58.26]
[1747377966315,58.26,172.89,172.78,6.80859311]
[1747377966611,58.26,172.88,172.84,5.7841]
[1747377967002,64.0431,172.88,172.84,5.7841]
[1747377967203,58.26,172.88,172.81,58.26]
[1747377967510,58.24,172.9,172.81,123.30859311]
[1747377967702,58.24,172.9,172.82,5.6111]
[1747377967900,58.24,172.9,172.86,5.7834]
[1747377968295,58.24,172.91,172.86,5.7834]
[1747377968707,5.7823,172.9,172.86,5.7834]
[1747377969311,5.7827,172.89,172.86,5.7834]
[1747377969606,58.24,172.91,172.82,5.6111]
[1747377969807,5.7831,172.88,172.82,5.6111]
[1747377970101,5.7831,172.88,172.83,5.7844]
[1747377970406,5.7831,172.88,172.82,5.6111]
[1747377970707,58.24,172.91,172.82,5.6111]
[1747377970909,58.24,172.91,172.82,3.7806]
[1747377971709,5.7827,172.89,172.85,5.7838]
[1747377971903,58.26,172.92,172.82,3.7806]
[1747377972099,58.22,172.91,172.82,3.7806]
[1747377972303,64.0022,172.91,172.87,5.7831]
[1747377973111,64.0417,172.92,172.88,5.7828]
[1747377973413,122.2617,172.92,172.88,5.7828]
[1747377974209,6.80859311,172.98,172.85,58.24]
[1747377974210,58.22,172.93,172.85,58.24]
[1747377974407,58.22,172.93,172.85,118.2651]
[1747377974718,6.80859311,173.03,172.87,6.80859311]
[1747377974905,58.24,173.0,172.87,6.80859311]
[1747377975810,5.7804,172.96,172.92,5.7816]
[1747377976013,58.22,172.97,172.89,58.22]
[1747377976510,58.22,172.97,172.92,5.7816]
[1747377976715,58.22,172.97,172.89,58.22]
[1747377976911,58.22,172.96,172.86,58.22]
[1747377977507,5.7815,172.93,172.86,58.22]
[1747377977709,58.22,172.96,172.86,58.22]
[1747377978114,5.7807,172.95,172.86,58.22]
[1747377978713,5.7807,172.95,172.91,5.7817]
[1747377979711,5.7811,172.94,172.91,5.7817]
[1747377979918,58.22,172.96,172.9,5.7822]
[1747377980116,58.22,172.96,172.86,58.22]
[1747377980305,5.7807,172.95,172.92,5.7814]
[1747377980920,64.0004,172.96,172.93,5.7813]
[1747377981418,242.4643391,173.03,172.87,6.80859311]
[1747377981615,5.7795,172.99,172.96,5.7802]
[1747377981914,58.18,172.99,172.9,58.18]
[1747377982310,58.18,172.99,172.9,64.98859311]
[1747377982818,58.18,172.99,172.96,5.7801]
[1747377984615,63.9593,172.99,172.96,5.7801]
[1747377984812,5.7793,172.99,172.96,5.7801]
[1747377985121,58.18,173.0,172.95,5.7805]
[1747377985320,58.18,173.0,172.9,64.98859311]
[1747377985719,58.18,173.0,172.96,5.7801]
[1747377986021,58.18,173.0,172.9,64.98859311]
[1747377986625,5.7794,172.99,172.96,5.7801]
[1747377988226,63.959,173.0,172.97,5.7799]
[1747377988625,58.18,173.0,172.97,5.7799]
[1747377989326,58.16,173.0,172.97,5.7799]
[1747377990425,5.7795,172.99,172.96,5.7802]
[1747377991428,5.7795,172.99,172.97,5.7799]
[1747377991923,235.65574599,173.03,172.9,64.98859311]
[1747377992115,58.16,173.02,172.9,64.98859311]
[1747377992526,5.7787,173.01,172.98,5.7794]
[1747377994429,5.779,173.0,172.98,5.7794]
[1747377995635,5.7787,173.01,172.98,5.7794]
[1747377996232,5.779,173.0,172.98,5.7794]
[1747377996421,64.94859311,173.06,172.97,5.7798]
[1747377996625,58.16,173.03,172.97,5.7798]
[1747377996829,5.7792,173.0,172.97,5.7798]
[1747377997028,5.7792,173.0,172.98,5.7796]
[1747377998733,58.16,173.03,172.94,58.16]
[1747377998936,293.77215218,173.06,172.94,60.0521]
[1747377999237,58.14,173.04,172.95,1.9397]
[1747377999427,293.77215218,173.06,172.96,6.80859311]
[1747377999632,58.14,173.05,172.96,8.74329311]
[1747378000234,5.7778,173.04,173.01,5.7784]
[1747378000435,5.7778,173.04,172.98,58.14]
[1747378000738,58.14,173.06,172.98,58.14]
[1747378001038,58.14,173.08,172.98,58.14]
[1747378001240,58.14,173.07,172.98,58.14]
[1747378001435,60.144,173.09,172.98,58.14]
[1747378001635,5.7765,173.08,173.05,5.7771]
[1747378001841,58.14,173.1,173.02,58.14]
[1747378002545,5.7762,173.09,173.02,58.14]
[1747378002746,58.14,173.1,173.02,58.14]
[1747378003146,58.14,173.1,173.05,5.7771]
[1747378003748,5.7764,173.08,173.05,5.7771]
[1747378004642,5.7764,173.08,173.0,1.9128]
[1747378004643,58.14,173.1,173.0,1.9128]
[1747378004842,58.14,173.1,173.0,60.0528]
[1747378006141,5.7765,173.08,173.05,5.7771]
[1747378007151,5.7767,173.07,173.04,5.7775]
[1747378007448,5.7767,173.07,173.0,60.0528]
[1747378007649,5.7764,173.08,173.05,5.7771]
[1747378008048,58.14,173.1,173.0,60.0528]
[1747378008248,5.776,173.09,173.0,60.0528]
[1747378008947,5.776,173.09,173.06,5.7767]
[1747378009354,5.7763,173.08,173.0,60.0528]
[1747378009850,58.1,173.1,173.0,60.0528]
[1747378010041,5.7764,173.08,173.0,60.0528]
[1747378010657,5.7764,173.08,173.05,5.7771]
[1747378012057,5.7764,173.08,173.06,5.7769]
[1747378012852,5.776,173.09,173.06,5.7769]
[1747378013156,58.14,173.12,173.02,58.1]
[1747378013348,58.1,173.11,173.02,58.1]
[1747378013550,5.7754,173.11,173.02,64.90859311]
[1747378013750,116.24,173.12,173.08,5.7762]
[1747378013952,5.7756,173.1,173.08,5.7762]
[1747378015051,116.24,173.12,173.07,5.7765]
[1747378015555,5.7757,173.1,173.07,5.7765]
[1747378016057,116.24,173.12,173.04,58.1]
[1747378016559,5.7759,173.1,173.07,5.7765]
[1747378016856,116.24,173.12,173.07,5.7765]
[1747378017160,5.7759,173.1,173.07,5.7765]
[1747378017958,5.7759,173.1,173.04,58.1]
[1747378017959,116.24,173.12,173.05,5.7773]
[1747378018356,116.24,173.12,173.04,58.1]
[1747378018559,5.7769,173.07,173.04,63.8775]
[1747378019663,5.7769,173.07,173.05,5.7773]
[1747378020161,5.7769,173.07,173.04,63.8775]
[1747378020461,5.7773,173.05,173.04,58.1]
[1747378020664,5.7773,173.05,173.0,61.876]
[1747378020862,5.7773,173.05,173.03,5.7778]
[1747378021060,116.18,173.08,173.0,58.1]
[1747378021259,116.18,173.08,172.96,6.80859311]
[1747378021260,116.18,173.08,172.99,5.779]
[1747378021465,5.7781,173.03,172.97,58.1]
[1747378021666,58.08,173.04,172.97,58.1]
[1747378021862,58.08,173.04,172.99,5.7793]
[1747378022063,5.7783,173.02,172.99,5.7793]
[1747378022260,58.08,173.04,172.97,58.1]
[1747378022465,58.08,173.04,172.98,5.7795]
[1747378022666,116.16,173.04,172.93,58.08]
[1747378022864,6.80859311,173.03,172.98,5.7795]
[1747378023162,5.779,173.0,172.98,5.7795]
[1747378023367,5.779,173.0,172.93,58.08]
[1747378023567,58.08,173.0,172.93,58.08]
[1747378024071,58.08,173.0,172.96,5.7801]
[1747378024364,58.08,173.0,172.93,58.08]
[1747378024666,58.08,173.03,172.93,58.08]
[1747378024865,58.08,173.03,172.96,6.80859311]
[1747378025064,58.08,173.03,172.97,61.9405]
[1747378025265,58.08,173.06,172.97,61.9405]
[1747378027068,58.1,173.07,172.97,61.9405]
[1747378027273,58.08,173.08,172.99,6.80859311]
[1747378027572,58.08,173.09,173.0,58.08]
[1747378027867,5.7764,173.08,173.05,5.7771]
[1747378028469,63.8561,173.09,173.05,5.7771]
[1747378028864,58.08,173.09,173.05,5.7771]
[1747378029071,58.08,173.09,173.01,58.1]
[1747378029470,58.08,173.09,173.04,5.7774]
[1747378029969,5.7768,173.07,173.04,5.7774]
[1747378030468,5.777,173.06,173.03,5.7778]
[1747378031873,5.7773,173.05,173.03,5.7778]
[1747378032974,58.08,173.09,173.01,58.1]
[1747378033378,5.7763,173.08,173.05,5.7771]
[1747378034773,58.1,173.1,173.01,58.1]
[1747378034968,58.08,173.11,173.02,6.80859311]
[1747378035163,58.08,173.11,173.03,1.8622]
[1747378035366,63.8553,173.11,173.08,5.7761]
[1747378036877,58.08,173.11,173.03,1.8622]
[1747378037376,5.7761,173.09,173.05,5.7771]
[1747378037576,58.08,173.11,173.05,5.7771]
[1747378038176,58.08,173.11,173.04,5.7775]
[1747378038677,58.08,173.11,173.03,5.7779]
[1747378039176,58.08,173.11,173.02,58.1]
[1747378039679,58.08,173.11,173.04,5.7775]
[1747378040078,5.7768,173.07,173.04,5.7775]
[1747378040276,58.06,173.09,173.03,5.7778]
[1747378040577,5.7771,173.06,173.03,5.7778]
[1747378040775,5.7771,173.06,173.02,58.1]
[1747378040972,58.06,173.09,173.02,58.1]
[1747378041576,5.7765,173.08,173.02,58.1]
[1747378041876,5.7765,173.08,173.05,5.7771]
[1747378042178,5.7767,173.07,173.05,5.7771]
[1747378043079,5.7763,173.08,173.02,58.1]
[1747378043376,58.06,173.09,173.02,58.1]
[1747378043577,5.7768,173.07,173.04,5.7774]
[1747378043981,5.7768,173.07,173.02,58.1]
[1747378044375,5.7768,173.07,173.05,5.7771]
[1747378044881,5.7764,173.08,173.05,5.7771]
[1747378045683,5.7766,173.07,173.05,5.7771]
[1747378047776,58.06,173.09,172.99,64.86859311]
[1747378047979,64.86859311,173.09,172.98,1.8206]
[1747378048177,5.7784,173.02,172.98,1.8206]
[1747378048376,58.06,173.04,172.97,126.74518887]
[1747378048575,58.06,173.03,172.97,126.74518887]
[1747378049175,5.7788,173.01,172.98,5.7794]
[1747378049377,58.06,173.03,172.97,126.74518887]
[1747378049884,5.7778,173.04,173.01,5.7784]
[1747378050584,121.8974,173.05,173.02,5.7783]
[1747378050785,116.12,173.05,172.98,1.8137]
[1747378050979,58.06,173.05,172.98,1.8137]
[1747378051279,58.06,173.05,172.99,58.06]
[1747378051876,58.06,173.05,173.02,5.7779]
[1747378052081,58.06,173.05,172.98,1.8137]
[1747378052484,5.7785,173.02,172.99,5.7791]
[1747378053481,5.7788,173.01,172.98,5.7795]
[1747378053687,58.06,173.04,172.98,5.7795]
[1747378054787,58.06,173.04,172.99,5.7793]
[1747378054986,58.06,173.04,172.94,59.8902]
[1747378055786,63.8378,173.04,173.01,5.7785]
[1747378056981,58.06,173.04,172.94,59.8902]
[1747378057386,58.06,173.05,172.96,6.80859311]
[1747378057588,58.06,173.05,173.04,5.7776]
[1747378058490,58.06,173.05,173.03,5.7778]
[1747378058783,5.7781,173.03,172.99,58.08]
[1747378059085,5.7781,173.03,172.97,58.06]
[1747378059281,5.7781,173.03,172.96,58.08]
[1747378059783,58.06,173.05,172.96,58.08]
[1747378060685,63.8373,173.05,172.96,58.08]
[1747378061390,5.7773,173.05,173.02,5.7781]
[1747378061686,63.8373,173.05,173.02,5.7781]
[1747378062993,58.06,173.05,172.96,58.08]
[1747378063388,58.06,173.05,172.96,64.88859311]
[1747378063589,58.06,173.05,172.97,1.9544]
[1747378064492,63.8373,173.05,173.03,5.7777]
[1747378065192,63.8373,173.05,173.02,5.7782]
[1747378065693,5.7777,173.04,173.02,5.7782]
[1747378066594,58.06,173.05,172.96,58.08]
[1747378067894,5.7787,173.01,172.96,58.08]
[1747378068093,58.06,173.05,172.96,58.08]
[1747378068395,5.7781,173.03,172.96,58.08]
[1747378068691,58.06,173.05,172.96,58.08]
[1747378068889,58.06,173.05,173.03,5.7779]
[1747378069090,58.06,173.05,172.96,64.88859311]
[1747378069395,58.06,173.05,173.02,5.7781]
[1747378069896,58.06,173.05,173.03,5.7779]
[1747378070488,5.7777,173.04,173.02,5.7782]
[1747378070690,58.06,173.05,172.96,64.88859311]
[1747378071795,58.06,173.05,173.04,5.7776]
[1747378072188,58.06,173.06,173.04,5.7776]
[1747378072689,58.06,173.06,173.05,5.7773]
[1747378073191,58.08,173.07,173.06,5.7769]
[1747378073395,58.08,173.07,173.0,58.06]
[1747378073597,58.08,173.07,173.0,59.8858]
[1747378074198,3.8389,173.14,173.05,5.7771]
[1747378074199,63.8365,173.08,173.05,5.7771]
[1747378074499,58.06,173.08,173.0,59.8858]
[1747378074798,5.777,173.06,173.0,59.8858]
[1747378075097,58.06,173.08,173.0,59.8858]
[1747378075300,5.7768,173.07,173.04,5.7775]
[1747378075598,58.06,173.08,173.0,59.8858]
[1747378076099,58.06,173.08,173.05,5.777]
[1747378076290,58.06,173.08,173.0,59.8858]
[1747378076598,5.7767,173.07,173.0,59.8858]
[1747378077197,5.7767,173.07,173.04,5.7774]
[1747378077398,5.777,173.06,173.04,5.7774]
[1747378078989,5.777,173.06,173.0,59.8858]
[1747378079195,5.7773,173.05,173.0,59.8858]
[1747378080597,5.7776,173.04,173.02,5.778]
[1747378081095,5.7775,173.05,173.02,5.778]
[1747378081499,58.06,173.08,173.02,5.778]
[1747378082098,58.06,173.08,172.98,1.8452]
[1747378082486,58.06,173.08,173.02,5.7783]
[1747378084293,58.04,173.08,172.98,1.8452]
[1747378084493,58.04,173.08,172.99,58.04]
[1747378084697,63.8165,173.08,172.99,58.04]
[1747378084996,116.08,173.09,173.0,3.76]
[1747378085197,116.08,173.09,173.01,58.04]
[1747378085703,5.7763,173.08,173.05,5.7771]
[1747378086303,116.08,173.09,173.01,58.04]
[1747378086601,116.08,173.09,172.76,81.55578626]
[1747378086602,17.38,173.01,172.76,81.55578626]
[1747378086796,499.3,173.0,172.76,81.55578626]
[1747378087108,506.0440484,173.07,172.82,6.7640484]
[1747378087307,62.9,173.06,172.9,6.7640484]
[1747378087494,62.92,173.05,172.91,126.6382]
[1747378087694,6.7640484,173.03,172.91,126.6382]
[1747378087902,5.7794,172.99,172.91,126.6382]
[1747378088101,62.98,172.99,172.91,126.6382]
[1747378088299,62.98,172.99,172.91,63.7182]
[1747378089102,6.7640484,172.97,172.91,1.9382]
[1747378089297,6.7640484,172.94,172.87,61.78]
[1747378089496,5.7819,172.92,172.86,61.78]
[1747378089804,62.98,172.94,172.86,61.78]
[1747378090305,5.7813,172.93,172.87,5.7832]
[1747378090506,62.98,172.94,172.87,5.7832]
[1747378090707,68.7613,172.94,172.86,61.78]
[1747378090906,62.98,172.94,172.86,61.78]
[1747378091609,5.7813,172.93,172.88,5.7829]
[1747378093307,62.98,172.94,172.89,5.7826]
[1747378093512,61.78,172.99,172.9,61.8]
[1747378093710,62.8,172.98,172.9,61.8]
[1747378094011,5.7806,172.96,172.9,61.8]
[1747378094213,62.8,172.98,172.9,61.8]
[1747378095720,5.7809,172.95,172.9,67.5823]
[1747378096124,5.7819,172.92,172.9,61.8]
[1747378096615,69.49312585,172.94,172.87,70.505]
[1747378096616,69.49312585,172.94,172.87,1.922]
[1747378096821,5.7817,172.92,172.87,1.922]
[1747378098116,5.7817,172.92,172.87,7.7051]
[1747378098734,69.49312585,172.94,172.87,1.922]
[1747378099221,5.7817,172.92,172.87,1.922]
[1747378100123,69.49312585,172.94,172.87,1.922]
[1747378100713,5.7817,172.92,172.87,1.922]
[1747378101320,5.7817,172.92,172.88,5.7829]
[1747378102125,62.72,172.94,172.87,1.922]
[1747378102726,68.5011,172.94,172.89,5.7826]
[1747378103024,62.72,172.94,172.89,5.7826]
[1747378103933,5.7813,172.93,172.89,5.7826]
[1747378104120,62.72,172.94,172.9,5.7822]
[1747378104321,61.8,172.95,172.87,1.922]
[1747378104521,62.32,172.94,172.87,1.922]
[1747378105031,129.8609,172.95,172.87,1.922]
[1747378105528,5.781,172.94,172.9,5.782]
[1747378105833,124.08,172.95,172.87,1.922]
[1747378106024,124.08,172.95,172.89,5.7824]
[1747378106728,5.7815,172.93,172.89,5.7824]
[1747378106930,5.7815,172.93,172.9,5.7823]
[1747378107732,129.8607,172.95,172.91,5.7818]
[1747378107935,61.82,172.99,172.9,61.82]
[1747378108129,123.98,172.99,172.91,1.8954]
[1747378108332,62.16,172.99,172.96,5.7801]
[1747378108531,67.9191,173.0,172.91,1.8954]
[1747378108829,62.14,173.0,172.91,64.0354]
[1747378109021,67.919,173.0,172.96,5.78]
[1747378109728,5.7793,172.99,172.96,5.78]
[1747378109933,62.14,173.0,172.95,5.7806]
[1747378110134,62.14,173.0,172.94,61.82]
[1747378111131,5.7795,172.99,172.94,61.82]
[1747378112529,62.14,173.0,172.94,61.82]
[1747378112735,61.94,173.01,172.94,61.82]
[1747378113034,61.94,173.01,172.99,5.7793]
[1747378113241,61.94,173.01,172.95,1.9191]
[1747378113530,61.94,173.01,172.99,5.7793]
[1747378114029,61.94,173.01,172.95,1.9191]
[1747378114234,123.7,173.03,172.95,1.9191]
[1747378114434,67.6582,173.03,172.95,1.9191]
[1747378115234,5.7777,173.04,172.95,1.9191]
[1747378115534,61.82,173.07,173.02,5.778]
[1747378115723,5.7773,173.05,173.02,5.778]
[1747378116126,5.7773,173.05,173.01,5.7785]
[1747378116329,5.7786,173.02,172.99,61.82]
[1747378116638,61.82,173.06,172.99,61.82]
[1747378117137,5.7788,173.01,172.99,61.82]
[1747378117341,6.77312585,173.04,172.99,61.82]
[1747378117544,61.76,173.02,172.97,5.7799]
[1747378117942,61.76,173.02,172.98,5.7795]
[1747378118244,61.76,173.02,172.95,63.6991]
[1747378119344,61.76,173.02,173.01,5.7786]
[1747378122157,5.7773,173.05,173.02,5.778]
[1747378122356,61.56,173.06,173.02,5.778]
[1747378122854,61.56,173.06,173.01,5.7785]
[1747378123052,61.56,173.06,172.99,61.78]
[1747378123652,5.7785,173.02,172.99,67.5592]
[1747378124947,5.7786,173.01,172.99,67.5592]
[1747378125147,61.56,173.06,173.0,5.7789]
[1747378125646,5.7782,173.03,173.0,5.7789]
[1747378125847,61.56,173.06,173.0,5.7789]
[1747378126045,5.7782,173.03,173.0,5.7789]
[1747378126345,61.56,173.06,173.0,5.7789]
[1747378127247,61.56,173.06,172.99,67.5592]
[1747378127550,6.77312585,173.05,172.95,63.6991]
[1747378127848,6.77312585,173.05,172.98,5.7796]
[1747378128645,68.33312585,173.06,172.98,5.7796]
[1747378128848,68.33312585,173.06,172.92,1.9532]
[1747378129050,61.84,173.05,172.94,1.8681]
[1747378129245,61.84,173.05,172.98,5.7793]
[1747378129639,5.7783,173.03,172.94,1.8681]
[1747378129851,5.7783,173.03,173.0,5.7787]
[1747378130048,61.84,173.05,172.94,1.8681]
[1747378130349,61.84,173.05,173.0,5.7789]
[1747378130752,5.7782,173.03,173.0,5.7789]
[1747378131151,61.84,173.05,172.99,5.7792]
[1747378131848,5.7786,173.02,172.99,5.7792]
[1747378135557,5.7786,173.02,173.0,5.7789]
[1747378135959,5.7789,173.01,172.97,61.78]
[1747378136458,61.84,173.05,172.97,61.78]
[1747378137057,5.7781,173.03,173.0,5.7787]
[1747378138761,5.7781,173.03,173.01,5.7785]
[1747378139655,61.48,173.04,173.02,5.7783]
[1747378140158,61.48,173.04,173.03,5.7779]
[1747378140558,61.48,173.04,172.98,1.8762]
[1747378141151,61.48,173.04,173.02,5.7781]
[1747378141554,61.42,173.05,172.98,1.8762]
[1747378142062,61.42,173.05,173.03,5.7778]
[1747378142560,68.53312585,173.1,172.98,1.8762]
[1747378142763,61.36,173.06,172.99,1.9853]
[1747378142963,61.36,173.06,173.0,1.8425]
[1747378143163,61.34,173.07,173.03,5.7777]
[1747378143760,61.34,173.07,173.02,5.7782]
[1747378143963,61.34,173.07,173.0,1.8425]
[1747378144158,5.7771,173.06,173.03,5.7777]
[1747378144461,61.34,173.07,173.0,1.8425]
[1747378144859,67.1169,173.07,173.04,5.7774]
[1747378145257,5.7769,173.07,173.04,5.7774]
[1747378145463,61.24,173.07,173.04,5.7774]
[1747378145668,61.24,173.07,173.05,5.7773]
[1747378146063,61.24,173.07,173.0,1.8425]
[1747378146254,67.0168,173.07,173.01,61.76]
[1747378146457,5.7768,173.07,173.01,61.76]
[1747378146866,5.7768,173.07,173.04,5.7774]
[1747378147669,5.7765,173.08,173.01,61.76]
[1747378147870,66.9165,173.08,173.01,61.76]
[1747378148170,61.14,173.08,173.01,61.76]
[1747378148863,61.14,173.08,173.06,5.7767]
[1747378149266,67.5357,173.1,173.01,61.76]
[1747378149570,66.8557,173.1,173.01,61.76]
[1747378149865,61.08,173.1,173.08,5.776]
[1747378150070,66.8354,173.11,173.05,61.16]
[1747378150270,61.06,173.11,173.05,61.16]
[1747378150466,5.7758,173.1,173.05,61.16]